[Event "GrandPrix_30.05"]
[Site "Chess.com"]
[Date "2020.05.30"]
[Round "3"]
[White "AvitalBor"]
[Black "woodhy"]
[Result "1-0"]
[WhiteElo "2642"]
[BlackElo "2191"]
[TimeControl "600+2"]
[EndTime "9:23:23 PDT"]
[Termination "AvitalBor won by resignation"]

1. e4 {[%clk 0:10:01.9]} 1... e6 {[%clk 0:09:59.6]} 2. d4 {[%clk 0:10:01.8]}
2... d5 {[%clk 0:09:59.7]} 3. Nd2 {[%clk 0:10:03]} 3... c5 {[%clk 0:10:00.1]} 4.
exd5 {[%clk 0:10:03]} 4... exd5 {[%clk 0:10:02]} 5. Ngf3 {[%clk 0:10:03.1]} 5...
Nc6 {[%clk 0:10:03.5]} 6. Bb5 {[%clk 0:10:03.4]} 6... Bd6 {[%clk 0:10:04.9]} 7.
dxc5 {[%clk 0:10:01.3]} 7... Bxc5 {[%clk 0:10:06.8]} 8. O-O {[%clk 0:10:02.1]}
8... Ne7 {[%clk 0:10:07.5]} 9. Nb3 {[%clk 0:10:01.8]} 9... Bd6 {[%clk
0:10:08.4]} 10. c3 {[%clk 0:09:58.5]} 10... O-O {[%clk 0:10:08.6]} 11. h3 {[%clk
0:09:59.7]} 11... Bf5 {[%clk 0:09:55.9]} 12. Bd3 {[%clk 0:10:00]} 12... Qd7
{[%clk 0:09:47.7]} 13. Bxf5 {[%clk 0:09:56]} 13... Nxf5 {[%clk 0:09:49.6]} 14.
Qd3 {[%clk 0:09:33.2]} 14... Rfe8 {[%clk 0:09:32.4]} 15. Rd1 {[%clk 0:09:25.9]}
15... Rad8 {[%clk 0:09:23.9]} 16. Bg5 {[%clk 0:09:24.2]} 16... Nfe7 {[%clk
0:09:19.7]} 17. Nbd4 {[%clk 0:09:14]} 17... h6 {[%clk 0:09:16.1]} 18. Bh4 {[%clk
0:08:41.3]} 18... Ne5 {[%clk 0:06:58.6]} 19. Nxe5 {[%clk 0:08:36.9]} 19... Bxe5
{[%clk 0:07:00.5]} 20. Nf3 {[%clk 0:08:28.3]} 20... Bb8 {[%clk 0:06:49.8]} 21.
Re1 {[%clk 0:08:23.6]} 21... g5 {[%clk 0:06:37.3]} 22. Bg3 {[%clk 0:08:21.3]}
22... Bxg3 {[%clk 0:06:31.4]} 23. fxg3 {[%clk 0:08:23.2]} 23... Qf5 {[%clk
0:06:12.5]} 24. Rad1 {[%clk 0:07:02.7]} 24... Qxd3 {[%clk 0:04:34.4]} 25. Rxd3
{[%clk 0:07:04.6]} 25... Nf5 {[%clk 0:04:34.6]} 26. Rxe8+ {[%clk 0:07:03.5]}
26... Rxe8 {[%clk 0:04:36.5]} 27. g4 {[%clk 0:07:04.5]} 27... Ne3 {[%clk
0:04:13.9]} 28. b3 {[%clk 0:06:42]} 28... f5 {[%clk 0:03:18]} 29. gxf5 {[%clk
0:06:37.6]} 29... Nxf5 {[%clk 0:03:08.3]} 30. Rxd5 {[%clk 0:06:36.7]} 30... Ng3
{[%clk 0:03:09.1]} 31. c4 {[%clk 0:06:14.6]} 31... Ne2+ {[%clk 0:03:07.6]} 32.
Kh2 {[%clk 0:06:00.6]} 32... Nf4 {[%clk 0:03:09.5]} 33. Re5 {[%clk 0:05:55.2]}
33... Rd8 {[%clk 0:02:56.3]} 34. Kg3 {[%clk 0:05:41.3]} 34... Ng6 {[%clk
0:01:56]} 35. Rc5 {[%clk 0:04:56.4]} 35... Rd7 {[%clk 0:01:17.7]} 36. Ne5 {[%clk
0:04:28]} 36... Nxe5 {[%clk 0:01:15.5]} 37. Rxe5 {[%clk 0:04:29.4]} 37... Rd2
{[%clk 0:01:00.4]} 38. Re7 {[%clk 0:04:25.2]} 38... Rxa2 {[%clk 0:01:00.1]} 39.
Rxb7 {[%clk 0:04:26.2]} 39... a5 {[%clk 0:00:52.1]} 40. c5 {[%clk 0:03:58.8]}
40... Rc2 {[%clk 0:00:49.5]} 41. Rb5 {[%clk 0:03:54.5]} 41... Kf7 {[%clk
0:00:43.2]} 42. Rxa5 {[%clk 0:03:54.8]} 42... Rc3+ {[%clk 0:00:43.2]} 43. Kg4
{[%clk 0:03:56.1]} 43... Rxb3 {[%clk 0:00:41.1]} 44. Kf5 {[%clk 0:03:56.2]}
44... Rg3 {[%clk 0:00:31.2]} 45. c6 {[%clk 0:02:51]} 45... Ke7 {[%clk
0:00:19.6]} 46. Rc5 {[%clk 0:02:10.4]} 46... Kd8 {[%clk 0:00:18.7]} 47. Rc2
{[%clk 0:02:10.2]} 47... h5 {[%clk 0:00:12.8]} 48. c7+ {[%clk 0:01:46.5]} 48...
Kc8 {[%clk 0:00:13.5]} 49. Kg6 {[%clk 0:01:47.7]} 49... h4 {[%clk 0:00:08.1]}
50. Kh5 {[%clk 0:01:45.7]} 50... g4 {[%clk 0:00:08.1]} 51. Kxh4 {[%clk
0:01:43.1]} 51... Rxg2 {[%clk 0:00:05.8]} 52. Rxg2 {[%clk 0:01:42.8]} 52... gxh3
{[%clk 0:00:07]} 1-0

[Event "GrandPrix_30.05"]
[Site "Chess.com"]
[Date "2020.05.30"]
[Round "3"]
[White "Arasvard"]
[Black "Forking_U"]
[Result "1-0"]
[WhiteElo "2011"]
[BlackElo "2079"]
[TimeControl "600+2"]
[EndTime "9:23:23 PDT"]
[Termination "Arasvard won on time"]

1. d4 {[%clk 0:10:01.9]} 1... d5 {[%clk 0:09:56.3]} 2. c4 {[%clk 0:10:02.5]}
2... c6 {[%clk 0:09:57.1]} 3. Nf3 {[%clk 0:10:02.9]} 3... Nf6 {[%clk 0:09:58.4]}
4. Nc3 {[%clk 0:10:03.7]} 4... e6 {[%clk 0:09:59.9]} 5. Bg5 {[%clk 0:10:04.2]}
5... h6 {[%clk 0:10:00.9]} 6. Bxf6 {[%clk 0:10:02.4]} 6... Qxf6 {[%clk
0:10:02.8]} 7. Qb3 {[%clk 0:10:03.5]} 7... a5 {[%clk 0:09:43.9]} 8. e4 {[%clk
0:10:03.4]} 8... dxe4 {[%clk 0:08:59.1]} 9. Nxe4 {[%clk 0:10:05.3]} 9... Bb4+
{[%clk 0:08:55.2]} 10. Kd1 {[%clk 0:09:38.4]} 10... Qf4 {[%clk 0:08:42.2]} 11.
Bd3 {[%clk 0:09:27.4]} 11... Be7 {[%clk 0:08:33.9]} 12. Ne5 {[%clk 0:09:07.5]}
12... Qh4 {[%clk 0:07:47]} 13. g3 {[%clk 0:07:18.6]} 13... Qh3 {[%clk
0:07:19.5]} 14. Ke2 {[%clk 0:06:36.4]} 14... a4 {[%clk 0:06:30.5]} 15. Qc2
{[%clk 0:06:12.4]} 15... Nd7 {[%clk 0:06:31.4]} 16. f4 {[%clk 0:05:46.3]} 16...
Nxe5 {[%clk 0:05:58.4]} 17. fxe5 {[%clk 0:05:41.8]} 17... Bd7 {[%clk 0:04:40.2]}
18. Raf1 {[%clk 0:04:48.3]} 18... Rd8 {[%clk 0:04:06.9]} 19. Rf4 {[%clk
0:04:20.5]} 19... Bc8 {[%clk 0:03:11.9]} 20. Rhf1 {[%clk 0:02:22.3]} 20... Rxd4
{[%clk 0:02:59.5]} 21. Rxf7 {[%clk 0:02:16.9]} 21... Qh5+ {[%clk 0:02:26.8]} 22.
R7f3 {[%clk 0:01:49.7]} 22... Qxe5 {[%clk 0:02:27.6]} 23. Re3 {[%clk 0:01:43.4]}
23... Qh5+ {[%clk 0:01:55.3]} 24. Kd2 {[%clk 0:01:16.5]} 24... Rf8 {[%clk
0:01:27.4]} 25. Rxf8+ {[%clk 0:01:12.4]} 25... Kxf8 {[%clk 0:01:20.8]} 26. h4
{[%clk 0:01:07.8]} 26... e5 {[%clk 0:01:10.6]} 27. Qxa4 {[%clk 0:01:04.1]} 27...
Qg4 {[%clk 0:00:47.8]} 28. Kc3 {[%clk 0:00:38.7]} 28... Rxd3+ {[%clk 0:00:08.6]}
29. Kxd3 {[%clk 0:00:35.6]} 29... Qd7+ {[%clk 0:00:08.7]} 30. Kc2 {[%clk
0:00:33.1]} 30... Qd4 {[%clk 0:00:08.7]} 31. Qb3 {[%clk 0:00:32.2]} 31... Bf5
{[%clk 0:00:08.9]} 32. Qd3 {[%clk 0:00:32.9]} 32... Bc5 {[%clk 0:00:03.6]} 33.
Qxd4 {[%clk 0:00:27.1]} 33... Bxd4 {[%clk 0:00:04]} 34. Rf3 {[%clk 0:00:27]}
34... g6 {[%clk 0:00:04.1]} 35. g4 {[%clk 0:00:28.2]} 1-0

[Event "GrandPrix_30.05"]
[Site "Chess.com"]
[Date "2020.05.30"]
[Round "3"]
[White "Glek_Igor"]
[Black "eristeski7"]
[Result "1-0"]
[WhiteElo "2459"]
[BlackElo "2164"]
[TimeControl "600+2"]
[EndTime "9:23:24 PDT"]
[Termination "Glek_Igor won by resignation"]

1. e4 {[%clk 0:10:00.4]} 1... c5 {[%clk 0:10:00.9]} 2. Nf3 {[%clk 0:10:00.1]}
2... Nc6 {[%clk 0:10:01.9]} 3. Bb5 {[%clk 0:09:59.1]} 3... g6 {[%clk 0:10:02.6]}
4. O-O {[%clk 0:09:59.4]} 4... Bg7 {[%clk 0:10:03.6]} 5. Re1 {[%clk 0:10:00.8]}
5... Nf6 {[%clk 0:10:04.3]} 6. c3 {[%clk 0:10:01.1]} 6... O-O {[%clk 0:10:00.6]}
7. e5 {[%clk 0:10:02.4]} 7... Nd5 {[%clk 0:09:59.6]} 8. d4 {[%clk 0:10:03.9]}
8... cxd4 {[%clk 0:09:57]} 9. cxd4 {[%clk 0:10:05.5]} 9... d6 {[%clk 0:09:53.3]}
10. Nc3 {[%clk 0:10:06.7]} 10... Nc7 {[%clk 0:09:32.9]} 11. exd6 {[%clk
0:10:00.9]} 11... exd6 {[%clk 0:09:16.1]} 12. Bg5 {[%clk 0:08:56.2]} 12... f6
{[%clk 0:08:28.3]} 13. Bf4 {[%clk 0:08:30.4]} 13... Bg4 {[%clk 0:08:01.9]} 14.
d5 {[%clk 0:06:50.8]} 14... Ne5 {[%clk 0:06:15.2]} 15. Be2 {[%clk 0:06:49.4]}
15... Bxf3 {[%clk 0:06:14.5]} 16. Bxf3 {[%clk 0:06:49.3]} 16... f5 {[%clk
0:06:15.7]} 17. Be2 {[%clk 0:06:45.2]} 17... Na6 {[%clk 0:05:12.6]} 18. Nb5
{[%clk 0:06:01.6]} 18... Qf6 {[%clk 0:04:49]} 19. Qd2 {[%clk 0:05:36.6]} 19...
Nf7 {[%clk 0:04:12.3]} 20. Rab1 {[%clk 0:05:27]} 20... Nc5 {[%clk 0:03:57.4]}
21. Be3 {[%clk 0:05:22.7]} 21... f4 {[%clk 0:02:13.6]} 22. Bd4 {[%clk
0:04:57.4]} 22... Ne5 {[%clk 0:02:13]} 23. Bg4 {[%clk 0:04:23.1]} 23... Qg5
{[%clk 0:01:59]} 24. Bxe5 {[%clk 0:02:31.8]} 24... Bxe5 {[%clk 0:01:29.1]} 25.
Bh3 {[%clk 0:02:03.5]} 25... Qf6 {[%clk 0:01:12.5]} 26. Nc7 {[%clk 0:01:39.1]}
26... Rab8 {[%clk 0:00:18.9]} 27. Qc2 {[%clk 0:01:14.5]} 27... Qe7 {[%clk
0:00:16.2]} 28. Ne6 {[%clk 0:00:53.5]} 28... Nxe6 {[%clk 0:00:15.4]} 29. Bxe6+
{[%clk 0:00:53.7]} 29... Kh8 {[%clk 0:00:16.3]} 30. Re4 {[%clk 0:00:38.2]} 30...
f3 {[%clk 0:00:13.1]} 31. g3 {[%clk 0:00:36.6]} 31... Qf6 {[%clk 0:00:12.3]} 32.
Qd2 {[%clk 0:00:25.7]} 32... Kg7 {[%clk 0:00:12.1]} 33. Rc1 {[%clk 0:00:23.8]}
33... h5 {[%clk 0:00:09.6]} 34. Rc7+ {[%clk 0:00:23.7]} 1-0

[Event "GrandPrix_30.05"]
[Site "Chess.com"]
[Date "2020.05.30"]
[Round "3"]
[White "VolodymyrMolyboha"]
[Black "Mikhail_Golubev"]
[Result "0-1"]
[WhiteElo "2199"]
[BlackElo "2086"]
[TimeControl "600+2"]
[EndTime "9:23:32 PDT"]
[Termination "Mikhail_Golubev won on time"]

1. e4 {[%clk 0:10:01.9]} 1... c5 {[%clk 0:09:59.4]} 2. Nf3 {[%clk 0:10:02.6]}
2... d6 {[%clk 0:10:00]} 3. Bb5+ {[%clk 0:10:00.2]} 3... Bd7 {[%clk 0:09:59.6]}
4. Bxd7+ {[%clk 0:10:00.6]} 4... Qxd7 {[%clk 0:10:00.6]} 5. O-O {[%clk
0:10:01.5]} 5... Nf6 {[%clk 0:10:01.3]} 6. Re1 {[%clk 0:10:02.7]} 6... Nc6
{[%clk 0:09:54.5]} 7. c4 {[%clk 0:10:03.2]} 7... g6 {[%clk 0:09:35.1]} 8. Nc3
{[%clk 0:10:02.2]} 8... Bg7 {[%clk 0:09:35.1]} 9. d3 {[%clk 0:09:25.2]} 9... O-O
{[%clk 0:09:32.6]} 10. h3 {[%clk 0:09:26]} 10... a6 {[%clk 0:09:07]} 11. Be3
{[%clk 0:09:12.3]} 11... Rab8 {[%clk 0:06:59.5]} 12. Rc1 {[%clk 0:09:01.7]}
12... b5 {[%clk 0:06:47.5]} 13. b3 {[%clk 0:09:00.1]} 13... Qd8 {[%clk
0:05:28.8]} 14. Qd2 {[%clk 0:07:52.6]} 14... Re8 {[%clk 0:05:26.9]} 15. Bh6
{[%clk 0:07:33.6]} 15... Bh8 {[%clk 0:05:24.6]} 16. Bg5 {[%clk 0:06:51.4]} 16...
Qa5 {[%clk 0:03:30.1]} 17. Re2 {[%clk 0:06:18.5]} 17... Nd7 {[%clk 0:03:15]} 18.
Be3 {[%clk 0:03:58.7]} 18... Bg7 {[%clk 0:03:02.6]} 19. Qe1 {[%clk 0:03:14.6]}
19... Nd4 {[%clk 0:02:25.3]} 20. Bxd4 {[%clk 0:02:27.8]} 20... cxd4 {[%clk
0:02:21.8]} 21. Nd1 {[%clk 0:02:00.8]} 21... Qa3 {[%clk 0:01:47.3]} 22. Qd2
{[%clk 0:01:34.1]} 22... Nc5 {[%clk 0:01:42]} 23. Rc2 {[%clk 0:01:30.8]} 23...
a5 {[%clk 0:01:29.5]} 24. Ne1 {[%clk 0:01:14.7]} 24... a4 {[%clk 0:00:48.2]} 25.
b4 {[%clk 0:00:31.1]} 25... Na6 {[%clk 0:00:48.2]} 26. cxb5 {[%clk 0:00:12.4]}
26... Rxb5 {[%clk 0:00:38.1]} 27. Nb2 {[%clk 0:00:13.3]} 27... Qxb4 {[%clk
0:00:31.4]} 28. Nf3 {[%clk 0:00:13.7]} 28... Qxd2 {[%clk 0:00:27.2]} 29. Rcxd2
{[%clk 0:00:13.9]} 29... Nc5 {[%clk 0:00:22.2]} 30. Nc4 {[%clk 0:00:08.4]} 30...
Rb1+ {[%clk 0:00:19.6]} 31. Kh2 {[%clk 0:00:09.3]} 31... Rc1 {[%clk 0:00:19.4]}
32. Na3 {[%clk 0:00:04.9]} 32... Bh6 {[%clk 0:00:17.8]} 33. Rc2 {[%clk
0:00:03.9]} 33... Nxd3 {[%clk 0:00:14.5]} 0-1

[Event "GrandPrix_30.05"]
[Site "Chess.com"]
[Date "2020.05.30"]
[Round "3"]
[White "grzechu96"]
[Black "ChessQueen"]
[Result "0-1"]
[WhiteElo "2401"]
[BlackElo "2255"]
[TimeControl "600+2"]
[EndTime "9:23:36 PDT"]
[Termination "ChessQueen won by resignation"]

1. e4 {[%clk 0:10:01.9]} 1... c6 {[%clk 0:10:00.4]} 2. d4 {[%clk 0:09:58.1]}
2... d5 {[%clk 0:10:00.7]} 3. Nc3 {[%clk 0:09:59.6]} 3... dxe4 {[%clk
0:10:01.6]} 4. Nxe4 {[%clk 0:10:01.5]} 4... Nf6 {[%clk 0:10:02.9]} 5. Nxf6+
{[%clk 0:10:01.6]} 5... exf6 {[%clk 0:10:04.8]} 6. c3 {[%clk 0:10:02.3]} 6...
Bd6 {[%clk 0:10:05]} 7. Bd3 {[%clk 0:10:02.9]} 7... O-O {[%clk 0:10:03.5]} 8.
Qc2 {[%clk 0:10:02.6]} 8... Re8+ {[%clk 0:10:01.7]} 9. Ne2 {[%clk 0:10:03.2]}
9... h5 {[%clk 0:09:59.1]} 10. O-O {[%clk 0:10:01.4]} 10... h4 {[%clk
0:09:58.3]} 11. h3 {[%clk 0:09:41.5]} 11... Nd7 {[%clk 0:09:58.9]} 12. Bd2
{[%clk 0:09:42.4]} 12... Nf8 {[%clk 0:09:59.4]} 13. Rae1 {[%clk 0:09:40.9]}
13... Be6 {[%clk 0:09:58.6]} 14. Bf4 {[%clk 0:08:22.5]} 14... Rc8 {[%clk
0:09:49.9]} 15. Qd2 {[%clk 0:07:31.7]} 15... Ng6 {[%clk 0:09:36.1]} 16. Bxd6
{[%clk 0:06:50.2]} 16... Qxd6 {[%clk 0:09:36]} 17. a3 {[%clk 0:06:48.3]} 17...
Rcd8 {[%clk 0:08:34.6]} 18. Qc2 {[%clk 0:06:31.2]} 18... Ne7 {[%clk 0:07:10.1]}
19. Kh1 {[%clk 0:05:56.2]} 19... c5 {[%clk 0:04:52.3]} 20. Rd1 {[%clk 0:04:39]}
20... f5 {[%clk 0:04:34.8]} 21. dxc5 {[%clk 0:04:37.4]} 21... Qxc5 {[%clk
0:04:31.3]} 22. Nd4 {[%clk 0:04:36]} 22... Bc8 {[%clk 0:04:26.7]} 23. Rfe1
{[%clk 0:03:35.5]} 23... g6 {[%clk 0:03:55.5]} 24. Qc1 {[%clk 0:03:36.5]} 24...
Nc6 {[%clk 0:03:20.7]} 25. Rxe8+ {[%clk 0:03:23.1]} 25... Rxe8 {[%clk
0:03:21.4]} 26. Nxc6 {[%clk 0:03:22.8]} 26... Qxc6 {[%clk 0:03:07.6]} 27. Qf4
{[%clk 0:02:47.6]} 27... Be6 {[%clk 0:02:40.1]} 28. Qxh4 {[%clk 0:02:35.8]}
28... Bb3 {[%clk 0:02:40]} 29. Rc1 {[%clk 0:02:16.7]} 29... Bd5 {[%clk
0:01:44.6]} 30. Bf1 {[%clk 0:02:17.2]} 30... Re4 {[%clk 0:01:40.8]} 31. Qd8+
{[%clk 0:02:00.7]} 31... Kg7 {[%clk 0:01:41.9]} 32. c4 {[%clk 0:01:58.9]} 32...
Be6 {[%clk 0:01:32.9]} 33. Qd3 {[%clk 0:01:58.2]} 33... Qc5 {[%clk 0:01:26.7]}
34. Qd2 {[%clk 0:01:48.9]} 34... f4 {[%clk 0:01:17.4]} 35. b4 {[%clk 0:01:48.4]}
35... Qe5 {[%clk 0:01:10.7]} 36. Bd3 {[%clk 0:00:47.6]} 36... Rd4 {[%clk
0:01:07.9]} 37. Qe2 {[%clk 0:00:49]} 37... Qg5 {[%clk 0:00:30.5]} 38. Be4 {[%clk
0:00:46.9]} 38... f3 {[%clk 0:00:27.8]} 0-1

[Event "GrandPrix_30.05"]
[Site "Chess.com"]
[Date "2020.05.30"]
[Round "3"]
[White "FLamps8"]
[Black "NikolaN98"]
[Result "0-1"]
[WhiteElo "2239"]
[BlackElo "2194"]
[TimeControl "600+2"]
[EndTime "9:23:38 PDT"]
[Termination "NikolaN98 won by checkmate"]

1. d4 {[%clk 0:09:56.8]} 1... e6 {[%clk 0:09:58.7]} 2. Nc3 {[%clk 0:09:57.7]}
2... Bb4 {[%clk 0:09:51.8]} 3. e4 {[%clk 0:09:57.2]} 3... d5 {[%clk 0:09:51.3]}
4. exd5 {[%clk 0:09:45.5]} 4... exd5 {[%clk 0:09:52]} 5. Bd3 {[%clk 0:09:47.4]}
5... Nc6 {[%clk 0:09:49.9]} 6. Ne2 {[%clk 0:09:44.3]} 6... Nge7 {[%clk
0:09:45.9]} 7. a3 {[%clk 0:09:42.3]} 7... Bxc3+ {[%clk 0:09:46.5]} 8. Nxc3
{[%clk 0:09:32.3]} 8... Be6 {[%clk 0:09:45.2]} 9. Be3 {[%clk 0:09:26.7]} 9...
Qd7 {[%clk 0:09:44.9]} 10. Qd2 {[%clk 0:09:25.2]} 10... O-O {[%clk 0:09:36.1]}
11. O-O-O {[%clk 0:09:20.9]} 11... a6 {[%clk 0:09:19.1]} 12. h3 {[%clk
0:09:12.4]} 12... b5 {[%clk 0:09:19.7]} 13. g4 {[%clk 0:09:13.1]} 13... b4
{[%clk 0:08:36.1]} 14. Nb1 {[%clk 0:09:00.4]} 14... Rfb8 {[%clk 0:08:32.6]} 15.
a4 {[%clk 0:08:55.7]} 15... b3 {[%clk 0:08:31]} 16. c3 {[%clk 0:08:55]} 16...
Na5 {[%clk 0:07:32.9]} 17. f4 {[%clk 0:08:55.2]} 17... Nc4 {[%clk 0:07:03]} 18.
Bxc4 {[%clk 0:08:17.8]} 18... dxc4 {[%clk 0:07:03.7]} 19. f5 {[%clk 0:08:18.4]}
19... Bd5 {[%clk 0:07:02.6]} 20. Rhf1 {[%clk 0:08:18.7]} 20... Be4 {[%clk
0:06:22.3]} 21. Na3 {[%clk 0:08:11.1]} 21... Nd5 {[%clk 0:06:07.4]} 22. f6
{[%clk 0:07:58.1]} 22... Nxf6 {[%clk 0:05:39.9]} 23. Nxc4 {[%clk 0:07:27.8]}
23... Nd5 {[%clk 0:05:23.8]} 24. Qf2 {[%clk 0:05:49.5]} 24... Bg6 {[%clk
0:04:22.6]} 25. h4 {[%clk 0:05:08.5]} 25... Qxa4 {[%clk 0:04:17.4]} 26. h5
{[%clk 0:05:07.3]} 26... Qxc4 {[%clk 0:02:01.8]} 27. hxg6 {[%clk 0:05:04.6]}
27... f6 {[%clk 0:01:49.6]} 28. gxh7+ {[%clk 0:03:47.3]} 28... Kh8 {[%clk
0:01:49.2]} 29. g5 {[%clk 0:03:40.4]} 29... fxg5 {[%clk 0:01:08.2]} 30. Bxg5
{[%clk 0:03:27.2]} 30... Qa4 {[%clk 0:01:06]} 31. Kd2 {[%clk 0:03:23.6]} 31...
Qa2 {[%clk 0:00:53.9]} 32. Kd3 {[%clk 0:03:09.6]} 32... Qa5 {[%clk 0:00:33.8]}
33. Qg3 {[%clk 0:02:32.9]} 33... Re8 {[%clk 0:00:31.9]} 34. Rde1 {[%clk
0:01:37.8]} 34... Qb5+ {[%clk 0:00:31.7]} 35. Kd2 {[%clk 0:01:35.4]} 35... Nb6
{[%clk 0:00:25.3]} 36. Bf6 {[%clk 0:00:33.6]} 36... gxf6 {[%clk 0:00:23.7]} 37.
Rxf6 {[%clk 0:00:23.1]} 37... Nc4+ {[%clk 0:00:22.9]} 38. Kc1 {[%clk 0:00:21.3]}
38... Qg5+ {[%clk 0:00:14]} 39. Qxg5 {[%clk 0:00:19.2]} 39... Rxe1# {[%clk
0:00:14.3]} 0-1

[Event "GrandPrix_30.05"]
[Site "Chess.com"]
[Date "2020.05.30"]
[Round "3"]
[White "VojtechPlat"]
[Black "cassoulet"]
[Result "0-1"]
[WhiteElo "2234"]
[BlackElo "2168"]
[TimeControl "600+2"]
[EndTime "9:23:44 PDT"]
[Termination "cassoulet won by resignation"]

1. e4 {[%clk 0:10:01.9]} 1... c5 {[%clk 0:10:00.8]} 2. Nf3 {[%clk 0:10:02.4]}
2... Nc6 {[%clk 0:10:02.1]} 3. c3 {[%clk 0:10:03.1]} 3... Nf6 {[%clk 0:10:02.9]}
4. e5 {[%clk 0:10:04]} 4... Nd5 {[%clk 0:10:04.3]} 5. Bc4 {[%clk 0:10:04.7]}
5... Nb6 {[%clk 0:10:05]} 6. Bb3 {[%clk 0:10:05.7]} 6... c4 {[%clk 0:10:06.6]}
7. Bc2 {[%clk 0:10:06.7]} 7... Qc7 {[%clk 0:10:08.3]} 8. Qe2 {[%clk 0:10:07.1]}
8... g5 {[%clk 0:10:09.4]} 9. Na3 {[%clk 0:08:30.3]} 9... g4 {[%clk 0:10:02.3]}
10. Nb5 {[%clk 0:08:30.5]} 10... Qb8 {[%clk 0:09:43]} 11. Nfd4 {[%clk
0:07:53.1]} 11... Nxe5 {[%clk 0:09:22.9]} 12. O-O {[%clk 0:07:39.9]} 12... a6
{[%clk 0:09:12.2]} 13. Na3 {[%clk 0:07:40.5]} 13... d5 {[%clk 0:09:08.2]} 14.
Re1 {[%clk 0:07:29]} 14... Bg7 {[%clk 0:08:46.3]} 15. d3 {[%clk 0:07:29.3]}
15... cxd3 {[%clk 0:08:34.9]} 16. Bxd3 {[%clk 0:07:29.7]} 16... e6 {[%clk
0:08:30.1]} 17. Bc2 {[%clk 0:05:22.7]} 17... Bd7 {[%clk 0:08:21.3]} 18. Kh1
{[%clk 0:05:14.5]} 18... O-O {[%clk 0:06:56.1]} 19. Bf4 {[%clk 0:05:14]} 19...
f6 {[%clk 0:06:57.4]} 20. c4 {[%clk 0:04:34.6]} 20... Qe8 {[%clk 0:06:38.8]} 21.
c5 {[%clk 0:04:16.6]} 21... Nbc4 {[%clk 0:06:34.8]} 22. Nxc4 {[%clk 0:04:16.4]}
22... dxc4 {[%clk 0:06:36.7]} 23. Qe4 {[%clk 0:04:04]} 23... Ng6 {[%clk
0:06:01.2]} 24. Bd6 {[%clk 0:03:58.3]} 24... f5 {[%clk 0:06:01.3]} 25. Qe3
{[%clk 0:03:32.2]} 25... e5 {[%clk 0:05:25.6]} 26. Bxf8 {[%clk 0:03:00.5]} 26...
Qxf8 {[%clk 0:05:27.5]} 27. Ne2 {[%clk 0:03:00.8]} 27... Bc6 {[%clk 0:05:13.2]}
28. Qg5 {[%clk 0:01:49.3]} 28... Qxc5 {[%clk 0:03:44.3]} 29. Bxf5 {[%clk
0:01:49.6]} 29... Qxf2 {[%clk 0:02:30.9]} 30. Qxg4 {[%clk 0:01:49.3]} 30...
Bxg2+ {[%clk 0:01:36.7]} 31. Qxg2 {[%clk 0:01:49.9]} 31... Qxf5 {[%clk
0:01:38.6]} 32. Qxb7 {[%clk 0:01:47]} 32... Rf8 {[%clk 0:01:25.9]} 33. Qd5+
{[%clk 0:01:22.1]} 33... Kh8 {[%clk 0:01:26]} 34. Rf1 {[%clk 0:01:21.6]} 34...
Qc2 {[%clk 0:01:22.2]} 35. Rxf8+ {[%clk 0:01:17.6]} 35... Bxf8 {[%clk
0:01:20.2]} 36. Re1 {[%clk 0:00:17.9]} 36... Qxb2 {[%clk 0:01:09.8]} 37. Qxc4
{[%clk 0:00:18.3]} 37... Qb7+ {[%clk 0:00:49.2]} 38. Kg1 {[%clk 0:00:19.4]}
38... Qb6+ {[%clk 0:00:46.6]} 39. Kf1 {[%clk 0:00:20.2]} 39... Bc5 {[%clk
0:00:39.8]} 40. Qf7 {[%clk 0:00:16.8]} 40... Qc6 {[%clk 0:00:36.3]} 41. Ng3
{[%clk 0:00:15.9]} 41... Nf4 {[%clk 0:00:25.5]} 42. Ne4 {[%clk 0:00:13.8]} 42...
Qb5+ {[%clk 0:00:23.7]} 0-1

[Event "GrandPrix_30.05"]
[Site "Chess.com"]
[Date "2020.05.30"]
[Round "3"]
[White "temus_galaktionov"]
[Black "Bulldog167"]
[Result "0-1"]
[WhiteElo "2577"]
[BlackElo "2485"]
[TimeControl "600+2"]
[EndTime "9:23:47 PDT"]
[Termination "Bulldog167 won by resignation"]

1. d4 {[%clk 0:10:01.9]} 1... Nf6 {[%clk 0:09:58.2]} 2. Nf3 {[%clk 0:10:02.9]}
2... d5 {[%clk 0:09:57]} 3. c4 {[%clk 0:10:03.5]} 3... e6 {[%clk 0:09:54.2]} 4.
Nc3 {[%clk 0:10:03.7]} 4... Nbd7 {[%clk 0:09:42.1]} 5. cxd5 {[%clk 0:09:57.3]}
5... exd5 {[%clk 0:09:42.5]} 6. Bg5 {[%clk 0:09:56.8]} 6... c6 {[%clk
0:09:42.6]} 7. e3 {[%clk 0:09:56.9]} 7... Bd6 {[%clk 0:09:42.7]} 8. Bd3 {[%clk
0:09:56.7]} 8... Nf8 {[%clk 0:09:43.5]} 9. Bh4 {[%clk 0:08:45.6]} 9... Ng6
{[%clk 0:09:20.4]} 10. Bg3 {[%clk 0:08:46]} 10... Bg4 {[%clk 0:09:18.2]} 11. Qb3
{[%clk 0:08:33.9]} 11... Bxf3 {[%clk 0:08:55.7]} 12. gxf3 {[%clk 0:08:35.8]}
12... Rb8 {[%clk 0:08:53.6]} 13. O-O-O {[%clk 0:08:28]} 13... O-O {[%clk
0:08:48.2]} 14. h4 {[%clk 0:08:24.9]} 14... Nh5 {[%clk 0:08:27.7]} 15. Rdg1
{[%clk 0:08:09.4]} 15... Nxg3 {[%clk 0:06:52.1]} 16. fxg3 {[%clk 0:08:11.3]}
16... Qb6 {[%clk 0:06:17.7]} 17. Qc2 {[%clk 0:08:04.5]} 17... Rfe8 {[%clk
0:06:18.2]} 18. h5 {[%clk 0:07:56.2]} 18... Nf8 {[%clk 0:06:16.8]} 19. Qd2
{[%clk 0:07:46.6]} 19... Bb4 {[%clk 0:05:44.2]} 20. a3 {[%clk 0:07:18.2]} 20...
Bxc3 {[%clk 0:05:43.5]} 21. Qxc3 {[%clk 0:07:20.1]} 21... Rbc8 {[%clk
0:05:34.1]} 22. Bf5 {[%clk 0:07:09.5]} 22... Rc7 {[%clk 0:05:33.5]} 23. Kb1
{[%clk 0:07:05.3]} 23... c5 {[%clk 0:04:59.2]} 24. Rc1 {[%clk 0:06:34.2]} 24...
c4 {[%clk 0:04:58.6]} 25. Rce1 {[%clk 0:06:26.5]} 25... Qd6 {[%clk 0:04:38.6]}
26. g4 {[%clk 0:05:57.1]} 26... b5 {[%clk 0:04:38.7]} 27. e4 {[%clk 0:05:58.2]}
27... Rb8 {[%clk 0:04:25]} 28. e5 {[%clk 0:05:50.7]} 28... Qe7 {[%clk
0:04:18.4]} 29. Qb4 {[%clk 0:05:51]} 29... Ne6 {[%clk 0:03:43.2]} 30. Bxe6
{[%clk 0:04:49]} 30... fxe6 {[%clk 0:03:43.4]} 31. Qd6 {[%clk 0:03:35.9]} 31...
Rd8 {[%clk 0:02:55.7]} 32. Qa6 {[%clk 0:03:26]} 32... Rb8 {[%clk 0:02:55.7]} 33.
Qd6 {[%clk 0:03:25.7]} 33... b4 {[%clk 0:02:19.7]} 34. a4 {[%clk 0:01:58.1]}
34... Rd8 {[%clk 0:01:50.6]} 35. Qa6 {[%clk 0:01:38.2]} 35... Qd7 {[%clk
0:01:37.9]} 36. Rhf1 {[%clk 0:01:30.8]} 36... Rb8 {[%clk 0:01:18.6]} 37. f4
{[%clk 0:01:18.8]} 37... Rb6 {[%clk 0:01:16.8]} 38. Qa5 {[%clk 0:01:16.4]} 38...
c3 {[%clk 0:01:13.9]} 39. b3 {[%clk 0:01:05.5]} 39... c2+ {[%clk 0:01:05.8]} 40.
Kb2 {[%clk 0:01:06.6]} 40... Rc3 {[%clk 0:00:41.7]} 41. f5 {[%clk 0:00:09.6]}
41... Qc7 {[%clk 0:00:42.6]} 42. fxe6 {[%clk 0:00:03.7]} 42... Rxb3+ {[%clk
0:00:43.5]} 43. Ka2 {[%clk 0:00:04.2]} 43... Ra3+ {[%clk 0:00:42]} 0-1